bitfinex/quotes_BTCUSD_20240911
["timestamp","ask_amount","ask_price","bid_price","bid_amount"]
[1726073453744,0.178106,57108.0,57107.0,0.037]
[1726073453947,0.528319,57108.0,57107.0,0.037]
[1726073454156,0.878532,57108.0,57107.0,0.047]
[1726073454474,0.878532,57108.0,57107.0,0.014]
[1726073454898,0.878532,57108.0,57107.0,0.026]
[1726073454899,0.879532,57108.0,57107.0,0.026]
[1726073455104,0.529319,57108.0,57107.0,0.026]
[1726073455315,0.528319,57108.0,57107.0,0.014]
[1726073455982,0.527328,57107.0,57106.0,0.001638]
[1726073456213,0.590028,57107.0,57106.0,0.001638]
[1726073456393,0.940247,57107.0,57106.0,0.001638]
[1726073457112,1.290466,57107.0,57106.0,0.001638]
[1726073457564,0.940247,57107.0,57106.0,0.001638]
[1726073457767,0.002,57107.0,57106.0,0.076938]
[1726073457976,0.002,57107.0,57106.0,0.9525]
[1726073458388,0.002,57107.0,57106.0,0.9755]
[1726073458589,0.002,57107.0,57106.0,0.625275]
[1726073458846,0.0200098,57107.0,57106.0,0.626275]
[1726073459271,0.02745949,57112.0,57111.0,0.898487]
[1726073460729,0.02745949,57112.0,57111.0,1.248682]
[1726073460939,0.02745949,57112.0,57111.0,0.898487]
[1726073461384,0.000819,57115.0,57114.0,0.87544]
[1726073461586,0.002819,57115.0,57114.0,0.548264]
[1726073461790,0.002819,57115.0,57114.0,0.198088]
[1726073461964,0.002819,57115.0,57114.0,0.89844]
[1726073462585,0.000819,57115.0,57114.0,0.89844]
[1726073462837,0.000819,57115.0,57114.0,1.47790976]
[1726073463257,0.000819,57115.0,57114.0,1.393616]
[1726073463467,0.001819,57115.0,57114.0,1.400616]
[1726073465346,0.001819,57115.0,57114.0,1.404616]
[1726073465543,0.001819,57115.0,57114.0,1.754792]
[1726073466042,0.02926946,57115.0,57114.0,1.754792]
[1726073466852,0.02926946,57115.0,57114.0,1.75643]
[1726073467241,0.02926946,57115.0,57114.0,2.135606]
[1726073467448,0.001819,57115.0,57114.0,2.64203772]
[1726073468100,0.000819,57115.0,57114.0,2.63503772]
[1726073468326,0.000819,57115.0,57114.0,2.63103772]
[1726073468564,0.001819,57115.0,57114.0,2.64503772]
[1726073468797,0.002819,57115.0,57114.0,1.96243]
[1726073468998,0.002819,57115.0,57114.0,1.400254]
[1726073469214,0.000819,57115.0,57114.0,1.372254]
[1726073469419,0.02826898,57115.0,57114.0,1.372254]
[1726073469623,0.03026898,57115.0,57114.0,1.8876554]
[1726073469834,0.03026898,57115.0,57114.0,2.16800056]
[1726073470046,0.02926898,57115.0,57114.0,1.72243]
[1726073470243,0.03026898,57115.0,57114.0,1.43864767]
[1726073470460,0.03126898,57115.0,57114.0,1.45264767]
[1726073471353,0.001819,57115.0,57114.0,1.386254]
[1726073471558,0.001819,57115.0,57114.0,1.399254]
[1726073471769,0.002819,57115.0,57114.0,1.399254]
[1726073471983,0.002819,57115.0,57114.0,1.409254]
[1726073472189,0.003819,57115.0,57114.0,1.423254]
[1726073472391,0.002819,57115.0,57114.0,1.409254]
[1726073472834,0.003819,57115.0,57114.0,1.423254]
[1726073473062,0.003819,57115.0,57114.0,1.47564767]
[1726073473263,0.002819,57115.0,57114.0,2.09184587]
[1726073473469,0.000818,57122.0,57121.0,1.249465]
[1726073473694,0.000818,57122.0,57121.0,1.778528]
[1726073474314,0.000818,57122.0,57121.0,1.393265]
[1726073474935,0.001818,57122.0,57121.0,1.407265]
[1726073475141,0.001818,57122.0,57121.0,1.345065]
[1726073475508,0.02926526,57122.0,57121.0,1.345065]
[1726073475686,0.03026526,57122.0,57121.0,0.562199]
[1726073475887,0.03026526,57122.0,57121.0,0.212066]
[1726073476305,0.03126526,57122.0,57121.0,0.926332]
[1726073476933,0.03026526,57122.0,57121.0,0.9120751]
[1726073477139,0.03126526,57122.0,57121.0,0.9200751]
[1726073477761,0.03026526,57122.0,57121.0,0.9060751]
[1726073478213,0.03026526,57122.0,57121.0,0.9160751]
[1726073478853,0.02926526,57122.0,57121.0,0.9160751]
[1726073479060,0.02926526,57122.0,57121.0,1.04269641]
[1726073479282,0.02926526,57122.0,57121.0,1.2662081]
[1726073481194,0.02926526,57122.0,57121.0,1.3290081]
[1726073481415,0.001818,57122.0,57121.0,1.7589411]
[1726073481618,0.001818,57122.0,57121.0,1.4088081]
[1726073482520,0.001818,57122.0,57121.0,1.49126924]
[1726073482753,0.001818,57122.0,57121.0,2.22127834]
[1726073482987,0.001818,57122.0,57121.0,2.22053524]
[1726073483440,0.001818,57122.0,57121.0,1.7879411]
[1726073483652,0.001818,57122.0,57121.0,1.0586751]
[1726073483862,0.001818,57122.0,57121.0,0.7085421]
[1726073484102,0.001818,57122.0,57121.0,1.0586751]
[1726073484312,0.002818,57122.0,57121.0,0.018]
[1726073484541,0.03152261,57122.0,57121.0,0.018]
[1726073485174,0.40202433,57122.0,57121.0,0.018]
[1726073485403,0.03152261,57122.0,57121.0,0.018]
[1726073486043,0.03052261,57122.0,57121.0,0.018]
[1726073486463,0.03152261,57122.0,57121.0,0.018]
[1726073486692,0.03152261,57122.0,57121.0,0.041]
[1726073486911,0.03152261,57122.0,57121.0,0.0407431]
[1726073487554,0.02926571,57122.0,57121.0,1.0598751]
[1726073487763,0.02926571,57122.0,57121.0,1.11232084]
[1726073488015,0.02926571,57122.0,57121.0,1.0598751]
[1726073488252,0.02926571,57122.0,57121.0,0.70128784]
[1726073489592,0.02926571,57122.0,57121.0,1.05142084]
[1726073489795,0.02926571,57122.0,57121.0,1.05305684]
[1726073490426,0.02926571,57122.0,57121.0,0.70292384]
[1726073491278,0.001818,57122.0,57121.0,0.70292384]
[1726073491485,0.001818,57122.0,57121.0,0.09482484]
[1726073491693,0.001818,57122.0,57121.0,0.26989084]
[1726073491899,0.001818,57122.0,57121.0,0.2174451]
[1726073492109,0.0030749,57122.0,57121.0,0.0423791]
[1726073492323,0.001818,57122.0,57121.0,0.5675781]
[1726073492531,0.177881,57122.0,57121.0,0.09482484]
[1726073492745,0.02207059,57122.0,57121.0,0.0423791]
[1726073493397,0.001818,57122.0,57121.0,0.5675781]
[1726073493605,0.001818,57122.0,57121.0,0.97015684]
[1726073493820,0.001818,57122.0,57121.0,1.03495684]
[1726073494026,0.001818,57122.0,57121.0,1.03502136]
[1726073494686,0.02926691,57122.0,57121.0,1.03502136]
[1726073495511,0.02926691,57122.0,57121.0,0.9825111]
[1726073496151,0.02926691,57122.0,57121.0,1.03502091]
[1726073496569,0.02926691,57122.0,57121.0,1.84404571]
[1726073496789,0.001818,57122.0,57121.0,2.57274003]
[1726073497259,0.001818,57122.0,57121.0,2.45211655]
[1726073497518,0.02744504,57128.0,57127.0,1.366239]
[1726073497757,0.02744504,57128.0,57127.0,1.80650284]
[1726073498464,0.02744504,57128.0,57127.0,1.94525923]
[1726073498696,0.02744504,57128.0,57127.0,2.29535623]
[1726073498950,0.02744504,57128.0,57127.0,2.10573255]
[1726073499178,0.02744504,57128.0,57127.0,1.94525923]
[1726073499410,0.02744504,57128.0,57127.0,2.29835623]
[1726073499662,0.02744504,57128.0,57127.0,2.29935623]
[1726073500144,0.02744504,57128.0,57127.0,2.29835623]
[1726073500391,0.02744504,57128.0,57127.0,2.32735623]
[1726073500622,0.02744504,57128.0,57127.0,2.32435623]
[1726073500849,0.02744504,57128.0,57127.0,2.33835623]
[1726073501089,0.02744504,57128.0,57127.0,2.33800249]
[1726073501589,0.02744504,57128.0,57127.0,2.35200249]
[1726073503037,0.02744504,57128.0,57127.0,2.36200119]
[1726073503271,0.02744504,57128.0,57127.0,2.2232448]
[1726073503784,0.02744504,57128.0,57127.0,2.2239879]
[1726073504272,0.02744504,57128.0,57127.0,2.44975852]
[1726073504521,0.02744504,57128.0,57127.0,2.60702097]
[1726073504763,0.02744504,57128.0,57127.0,2.95711797]
[1726073504998,0.02744504,57128.0,57127.0,2.78319052]
[1726073505499,0.02744504,57128.0,57127.0,2.62592807]
[1726073505742,0.02744504,57128.0,57127.0,2.78322156]
[1726073506721,0.02744504,57128.0,57127.0,2.60705201]
[1726073507206,0.02744504,57128.0,57127.0,2.60679511]
[1726073507660,0.02744504,57128.0,57127.0,2.66605201]
[1726073507893,0.0025037,57143.0,57130.0,1.7764941]
[1726073508120,0.02744173,57135.0,57130.0,2.0934042]
[1726073508356,0.02744173,57135.0,57130.0,2.1934042]
[1726073509321,0.02744173,57135.0,57130.0,2.2054042]
[1726073509550,0.02744173,57135.0,57130.0,2.2194042]
[1726073510711,0.02744173,57135.0,57130.0,2.80490865]
[1726073510953,0.02326073,57135.0,57134.0,1.85301362]
[1726073511230,0.0025037,57143.0,57134.0,1.85301362]
[1726073511231,0.0025037,57143.0,57142.0,1.248017]
[1726073511474,0.0025037,57143.0,57142.0,1.325017]
[1726073512401,0.0022643,57154.0,57152.0,0.174971]
[1726073512860,0.0022643,57154.0,57153.0,0.197968]
[1726073513090,0.0010074,57154.0,57153.0,0.547905]
[1726073513326,0.0010074,57154.0,57153.0,1.3025709]
[1726073514085,0.02844166,57154.0,57153.0,1.3025709]
[1726073514337,0.02844166,57154.0,57153.0,1.247779]
[1726073514855,0.02844166,57154.0,57153.0,1.659616]
[1726073515082,0.02844166,57154.0,57153.0,1.689616]
[1726073515315,0.02844166,57154.0,57153.0,2.2229961]
[1726073515545,0.000819,57162.0,57161.0,0.03]
[1726073515767,0.000819,57162.0,57161.0,1.43238432]
[1726073515985,0.000819,57162.0,57161.0,2.36290278]
[1726073516210,0.000819,57162.0,57161.0,2.23086358]
[1726073516709,0.000819,57162.0,57161.0,2.27925048]
[1726073516967,0.000819,57162.0,57161.0,2.50051475]
[1726073517225,0.000819,57162.0,57161.0,2.1935306]
[1726073517484,0.000819,57162.0,57161.0,2.35487767]
[1726073517784,0.000819,57162.0,57161.0,2.01109647]
[1726073518265,0.000819,57162.0,57161.0,2.23686709]
[1726073518528,0.000819,57162.0,57161.0,2.36084377]
[1726073518786,0.000819,57162.0,57161.0,2.28600296]
[1726073519047,0.000819,57162.0,57161.0,2.92662513]
[1726073519264,0.000819,57162.0,57161.0,2.51251668]
[1726073519493,0.0282433,57162.0,57161.0,2.94058172]
[1726073519717,0.000819,57162.0,57161.0,3.02453696]
[1726073519950,0.000819,57162.0,57161.0,3.03853696]
[1726073520239,0.02742502,57172.0,57161.0,3.03853696]
[1726073520240,0.0021496,57184.0,57172.0,0.0621]
[1726073520502,0.0021496,57184.0,57177.0,1.47977872]
[1726073520753,0.0021496,57184.0,57177.0,2.00996872]
[1726073521005,0.0021496,57184.0,57177.0,2.11238918]
[1726073521489,0.0021496,57184.0,57177.0,2.14826228]
[1726073521741,0.0021496,57184.0,57177.0,2.15326228]
[1726073521989,0.0021496,57184.0,57177.0,2.61835228]
[1726073522217,0.0021496,57184.0,57177.0,3.00514228]
[1726073522470,0.0021496,57184.0,57177.0,3.40927786]
[1726073522703,0.0021496,57184.0,57177.0,3.34512563]
[1726073522937,0.0021496,57184.0,57179.0,2.2107952]
[1726073523167,0.0021496,57184.0,57179.0,2.53274682]
[1726073523399,0.0021496,57184.0,57180.0,2.0723622]
[1726073523635,0.0021035,57186.0,57185.0,0.6150992]
[1726073523864,0.0021035,57186.0,57185.0,1.40634182]
[1726073524119,0.0021035,57186.0,57185.0,2.17052582]
[1726073524350,0.0021035,57186.0,57185.0,2.34669537]
[1726073524590,0.0021035,57186.0,57185.0,2.16978272]
[1726073525080,0.0021035,57186.0,57185.0,2.18378272]
[1726073525560,0.0021035,57186.0,57185.0,2.20678272]
[1726073525799,0.52535264,57202.0,57200.0,0.897125]
[1726073526315,0.0012569,57204.0,57200.0,0.897125]
[1726073526549,0.03137825,57201.0,57200.0,0.897125]
[1726073527025,0.03137825,57201.0,57200.0,1.72084738]
[1726073527273,0.03137825,57201.0,57200.0,1.25851868]
[1726073528249,0.03137825,57201.0,57200.0,1.24651868]
[1726073528483,0.03137825,57201.0,57200.0,1.26051868]
[1726073528723,0.03137825,57201.0,57200.0,1.59616868]
[1726073528968,0.0021496,57207.0,57206.0,0.897032]
[1726073529260,0.0021496,57207.0,57206.0,1.41792251]
[1726073529504,0.0021496,57207.0,57206.0,1.48012251]
[1726073529741,0.0021496,57207.0,57206.0,1.82973551]
[1726073529980,0.0021496,57207.0,57206.0,1.737058]
[1726073530219,0.0021496,57207.0,57206.0,1.74704507]
[1726073530453,0.0021496,57207.0,57206.0,1.325245]
[1726073530910,0.00774499,57223.0,57206.0,0.1116]
[1726073531143,0.00774499,57223.0,57217.0,0.023]
[1726073531144,0.52535264,57221.0,57217.0,0.023]
[1726073531380,0.174759,57222.0,57219.0,0.023]
[1726073531614,0.00774499,57223.0,57219.0,0.197766]
[1726073531861,0.00774499,57223.0,57221.0,0.174759]
[1726073532089,0.00774499,57223.0,57219.0,0.023]
[1726073532562,0.00774499,57223.0,57222.0,0.174757]
[1726073532810,0.00774499,57223.0,57219.0,0.023]
[1726073533088,0.00774499,57223.0,57218.0,0.023]
[1726073533343,0.00774499,57223.0,57220.0,0.174763]
[1726073533803,0.18249899,57223.0,57222.0,0.002]
[1726073534044,0.17476,57222.0,57218.0,0.023]
[1726073534289,0.30951495,57219.0,57210.0,0.023]
[1726073534527,0.30951495,57219.0,57218.0,0.002]
[1726073534755,0.30951495,57219.0,57214.0,0.349559]
[1726073534756,0.48428295,57219.0,57215.0,0.197778]
[1726073534994,0.174771,57218.0,57213.0,0.023]
[1726073535223,0.33692001,57219.0,57213.0,0.023]
[1726073535457,0.0605,57217.0,57213.0,0.023]
[1726073535739,0.30951495,57214.0,57211.0,0.174791]
[1726073536012,0.48429795,57214.0,57206.0,0.34961]
[1726073536260,0.0370015,57213.0,57211.0,0.174789]
[1726073536535,0.0605,57217.0,57201.0,0.349643]
[1726073536762,0.0605,57217.0,57201.0,0.00349573]
[1726073536990,0.0605,57217.0,57216.0,0.524328]
[1726073537225,0.0605,57217.0,57216.0,0.547328]
[1726073537486,0.174761,57221.0,57217.0,0.174772]
[1726073537727,0.000818,57219.0,57218.0,0.17477]
[1726073537987,0.000818,57219.0,57217.0,0.174772]
[1726073538211,0.000818,57219.0,57218.0,0.52431]
[1726073538451,0.02822417,57219.0,57218.0,0.54731]
[1726073538923,0.02822417,57219.0,57218.0,0.89685]
[1726073539910,0.30951495,57229.0,57228.0,0.174739]
[1726073540131,0.30951495,57229.0,57218.0,0.37254]
[1726073540132,0.30951495,57229.0,57218.0,0.023]
[1726073540350,0.30951495,57229.0,57219.0,0.023]
[1726073540351,0.33691693,57229.0,57219.0,0.023]
[1726073540573,0.33691693,57229.0,57225.0,0.174746]
[1726073540824,0.33691693,57229.0,57223.0,0.372508]
[1726073541049,0.68639093,57229.0,57223.0,0.023]
[1726073541293,0.68639093,57229.0,57222.0,0.023]
[1726073541294,0.33691693,57229.0,57222.0,0.023]
[1726073541511,0.51265393,57229.0,57225.0,0.174746]
[1726073541732,0.17474,57228.0,57224.0,0.174751]
[1726073542000,0.33791693,57229.0,57219.0,0.023]
[1726073542001,0.33891693,57229.0,57219.0,0.023]
[1726073542222,0.30951495,57223.0,57205.0,0.05191139]
[1726073542453,0.30951495,57223.0,57204.0,0.07795032]
[1726073542454,0.30951495,57215.0,57214.0,0.174781]
[1726073542673,0.30951495,57215.0,57210.0,0.349588]
[1726073542909,0.30951495,57215.0,57212.0,0.349576]
[1726073543127,0.30951495,57215.0,57212.0,0.174787]
[1726073543585,0.30951495,57215.0,57203.0,0.0758]
[1726073543586,0.174782,57214.0,57203.0,0.0758]
[1726073543804,0.30951495,57215.0,57211.0,0.349577]
[1726073544033,0.34951,57223.0,57211.0,0.349577]
[1726073544034,0.30951495,57219.0,57216.0,0.174774]
[1726073544245,0.48428195,57219.0,57216.0,0.174776]
[1726073544457,0.48428195,57219.0,57212.0,0.012]
[1726073544458,0.30951495,57219.0,57214.0,0.17478]
[1726073544698,0.30951495,57219.0,57212.0,0.349576]
[1726073544699,0.30951495,57219.0,57203.0,0.10811414]
[1726073544920,0.349507,57224.0,57220.0,0.174762]
[1726073544921,0.30951495,57224.0,57220.0,0.174762]
[1726073545146,0.30951495,57224.0,57219.0,0.023]
[1726073545367,0.30951495,57224.0,57220.0,0.349528]
[1726073545594,0.02740456,57223.0,57220.0,0.349528]
[1726073546058,0.02740456,57223.0,57222.0,0.174756]
[1726073546276,0.02740456,57223.0,57222.0,0.524271]
[1726073546510,0.02740456,57223.0,57222.0,0.547271]
[1726073547180,0.02740456,57223.0,57222.0,0.547014]
[1726073547604,0.174737,57229.0,57223.0,0.023]
[1726073547605,0.174743,57227.0,57223.0,0.023]
[1726073547834,0.349476,57229.0,57224.0,0.174749]
[1726073547835,0.524215,57229.0,57224.0,0.174749]
[1726073548044,0.02740313,57227.0,57225.0,0.174747]
[1726073548257,0.22506174,57226.0,57224.0,0.174751]
[1726073548515,0.174753,57224.0,57222.0,0.025]
[1726073548733,0.22506174,57226.0,57222.0,0.025]
[1726073548734,0.39980774,57226.0,57222.0,0.025]
[1726073548941,0.22506174,57226.0,57224.0,0.174749]
[1726073549156,0.22506174,57226.0,57224.0,0.001]
[1726073549368,0.22506174,57226.0,57224.0,0.175751]
[1726073549614,0.22506174,57226.0,57225.0,0.174748]
[1726073549865,0.22506174,57226.0,57223.0,0.174753]
[1726073550075,0.39980674,57226.0,57223.0,0.174753]
[1726073550494,0.22506174,57226.0,57224.0,0.174751]
[1726073550735,0.22506174,57226.0,57222.0,0.023]
[1726073550963,0.40080674,57226.0,57222.0,0.023]
[1726073551178,0.39980674,57226.0,57222.0,0.023]
[1726073551390,0.39980674,57226.0,57223.0,0.174753]
[1726073551612,0.22506174,57226.0,57224.0,0.174751]
[1726073551833,0.40080774,57226.0,57223.0,0.174753]
[1726073552059,0.40080774,57226.0,57222.0,0.023]
[1726073552060,0.22506174,57226.0,57222.0,0.023]
[1726073552282,0.05745397,57225.0,57223.0,0.174754]
[1726073552525,0.05745397,57225.0,57222.0,0.023]
[1726073552750,0.05745397,57225.0,57222.0,0.197757]
[1726073553188,0.05745397,57225.0,57224.0,0.174751]
[1726073553396,0.22506174,57226.0,57224.0,0.174751]
[1726073554093,0.001,57226.0,57225.0,1.321239]
[1726073554310,0.174731,57231.0,57228.0,0.174739]
[1726073554535,0.22506174,57229.0,57222.0,0.174755]
[1726073554778,0.22506174,57223.0,57222.0,0.372514]
[1726073555018,0.22506174,57227.0,57222.0,0.372514]
[1726073555308,0.39980474,57227.0,57223.0,0.174752]
[1726073555531,0.39980474,57227.0,57222.0,0.372514]
[1726073555532,0.001,57226.0,57224.0,0.174251]
[1726073555755,0.39980474,57227.0,57224.0,0.174251]
[1726073555998,0.39980474,57227.0,57223.0,0.174754]
[1726073556229,0.22506174,57227.0,57225.0,0.174747]
[1726073556465,0.22506174,57227.0,57222.0,0.372514]
[1726073556690,0.22485139,57227.0,57225.0,0.174748]
[1726073556920,0.22485139,57227.0,57226.0,0.174745]
[1726073557371,0.22485139,57227.0,57226.0,0.547236]
[1726073557615,0.22485139,57227.0,57226.0,0.896727]
[1726073557861,0.22485139,57227.0,57226.0,0.547236]
[1726073558130,0.22485139,57227.0,57226.0,0.023]
[1726073558357,0.24733653,57227.0,57226.0,0.006]
[1726073558592,0.22485139,57227.0,57225.0,0.174747]
[1726073558839,0.22485139,57227.0,57222.0,0.023]
[1726073558840,0.22485139,57227.0,57226.0,0.008]
[1726073559087,0.22485139,57227.0,57226.0,0.182745]
[1726073559550,0.22485139,57227.0,57226.0,0.008]
[1726073559551,0.39959339,57227.0,57226.0,0.008]
[1726073559787,0.77156353,57227.0,57226.0,0.008]
[1726073560046,1.13454853,57227.0,57226.0,0.008]
[1726073560276,1.48403353,57227.0,57226.0,0.008]
[1726073560501,1.51143718,57227.0,57226.0,0.005]
[1726073560967,0.174763,57221.0,57217.0,0.22659312]
[1726073561208,0.05501158,57226.0,57218.0,0.05182012]
[1726073561683,0.22506174,57223.0,57219.0,0.349531]
[1726073561688,0.22506174,57223.0,57221.0,0.17476]
[1726073561915,0.02248514,57222.0,57220.0,0.197763]
[1726073562153,0.22506174,57223.0,57220.0,0.023]
[1726073562385,0.39981774,57223.0,57220.0,0.197764]
[1726073562640,0.39981674,57223.0,57220.0,0.24958412]
[1726073562883,0.22506174,57223.0,57220.0,0.24958412]
[1726073563592,0.22506174,57223.0,57220.0,0.25258412]
[1726073563814,0.39981674,57223.0,57220.0,0.25258412]
[1726073564038,0.174761,57221.0,57220.0,0.07782012]
[1726073564274,0.174761,57221.0,57220.0,0.10130628]
[1726073564495,0.57457474,57223.0,57220.0,0.10130628]
[1726073564496,0.25246604,57223.0,57220.0,0.42685344]
[1726073564722,0.77673304,57223.0,57222.0,0.05223413]
[1726073564959,1.12624604,57223.0,57222.0,0.05223413]
[1726073565686,0.25246604,57223.0,57222.0,0.07835119]
[1726073565905,0.0274043,57223.0,57222.0,0.55656407]
[1726073566124,0.25246604,57223.0,57222.0,0.37905588]
[1726073566353,0.25246604,57223.0,57222.0,0.38183539]
[1726073566583,0.25246604,57223.0,57222.0,0.178757]
[1726073567042,0.42722004,57223.0,57222.0,0.004]
[1726073567264,0.42722004,57223.0,57222.0,0.001]
[1726073567486,0.25246604,57223.0,57222.0,0.175757]
[1726073567713,0.25246604,57223.0,57222.0,0.40575525]
[1726073567714,0.0274043,57223.0,57222.0,0.40575525]
[1726073567975,0.0274043,57223.0,57222.0,0.57751225]
[1726073568196,0.0274043,57223.0,57222.0,0.58151225]
[1726073568414,0.0274043,57223.0,57222.0,0.23199725]
[1726073568643,0.0274043,57223.0,57222.0,0.22803346]
[1726073568880,0.0274043,57223.0,57222.0,0.57754846]
[1726073569109,0.0274043,57223.0,57222.0,0.58354846]
[1726073569317,0.0274043,57223.0,57222.0,0.93306346]
[1726073569584,0.0274043,57223.0,57222.0,0.530272]
[1726073569825,0.0274043,57223.0,57222.0,0.180757]
[1726073570019,0.0274043,57223.0,57222.0,0.183757]
[1726073570936,0.77672904,57223.0,57222.0,0.009]
[1726073571159,0.42722004,57223.0,57222.0,0.009]
[1726073571389,0.22506174,57223.0,57222.0,0.009]
[1726073571621,0.22506174,57223.0,57222.0,0.183757]
[1726073571849,0.40062374,57227.0,57222.0,0.358515]
[1726073572070,0.40062374,57227.0,57223.0,0.349506]
[1726073572071,0.22588074,57227.0,57223.0,0.349506]
[1726073572535,0.22588074,57227.0,57223.0,0.174753]
[1726073572536,0.40062474,57227.0,57223.0,0.174753]
[1726073573215,0.000819,57226.0,57223.0,0.174753]
[1726073573439,0.000819,57226.0,57224.0,0.17475]
[1726073573659,0.000819,57226.0,57225.0,0.524245]
[1726073573893,0.000819,57226.0,57225.0,1.041942]
[1726073574113,0.000819,57226.0,57225.0,1.391439]
[1726073574805,0.000819,57226.0,57225.0,1.041942]
[1726073575025,0.000819,57226.0,57225.0,1.044942]
[1726073575240,0.000819,57226.0,57225.0,1.041942]
[1726073575735,0.000819,57226.0,57225.0,1.050942]
[1726073576180,0.000819,57226.0,57225.0,0.678445]
[1726073576401,0.000819,57226.0,57225.0,0.684445]
[1726073576624,0.000819,57226.0,57225.0,0.015]
[1726073576843,0.22588074,57226.0,57225.0,0.015]
[1726073577287,0.40062574,57226.0,57225.0,0.015]
[1726073577501,1.09960774,57226.0,57225.0,0.015]
[1726073578384,1.44909874,57226.0,57225.0,0.015]
[1726073579045,1.89958974,57226.0,57225.0,0.015]
[1726073579264,1.89958974,57226.0,57225.0,0.009]
[1726073579265,1.703528,57226.0,57225.0,0.009]
[1726073579508,1.54909874,57226.0,57225.0,0.009]
[1726073580187,1.54909874,57226.0,57222.0,0.001638]
[1726073580188,0.524263,57223.0,57222.0,0.001638]
[1726073580411,0.174754,57223.0,57222.0,0.001638]
[1726073580635,0.67537174,57226.0,57222.0,0.001638]
[1726073580636,0.174749,57225.0,57222.0,0.001638]
[1726073580905,0.349503,57225.0,57222.0,0.001638]
[1726073581130,0.22588074,57226.0,57225.0,0.001]
[1726073581131,0.22988074,57226.0,57225.0,0.001]
[1726073581353,0.40462574,57226.0,57225.0,0.001]
[1726073581574,0.40462574,57226.0,57222.0,0.176395]
[1726073581575,0.40062574,57226.0,57222.0,0.176395]
[1726073581807,0.40062574,57226.0,57222.0,0.181395]
[1726073582036,0.40062574,57226.0,57222.0,0.176395]
[1726073582276,0.000819,57226.0,57225.0,0.524245]
[1726073582498,0.000819,57226.0,57225.0,0.953542]
[1726073582943,0.000819,57226.0,57225.0,0.954542]
[1726073583429,0.000819,57226.0,57225.0,0.956542]
[1726073583653,0.000819,57226.0,57225.0,0.607045]
[1726073583868,0.000819,57226.0,57225.0,0.608045]
[1726073584084,0.000819,57226.0,57225.0,0.615045]
[1726073584308,0.000819,57226.0,57225.0,0.604045]
[1726073584523,0.000819,57226.0,57225.0,0.609045]
[1726073584742,0.000819,57226.0,57225.0,0.617045]
[1726073585107,0.02821927,57226.0,57225.0,0.617045]
[1726073587363,0.42802601,57226.0,57225.0,0.013]
[1726073587569,1.12700801,57226.0,57225.0,0.013]
[1726073587776,1.85599001,57226.0,57225.0,0.013]
[1726073587942,1.85599001,57226.0,57222.0,0.001638]
[1726073587943,0.903772,57223.0,57222.0,0.001638]
[1726073588183,0.174797,57209.0,57208.0,0.05240202]
[1726073588422,0.174797,57209.0,57206.0,0.07860303]
[1726073588423,0.349601,57208.0,57206.0,0.05240202]
[1726073588676,0.349601,57208.0,57202.0,0.13100505]
[1726073588677,0.349602,57208.0,57202.0,0.05240202]
[1726073588889,0.174807,57206.0,57202.0,0.22721902]
[1726073589109,0.37701329,57208.0,57199.0,0.0015479]
[1726073589110,0.57469374,57203.0,57199.0,0.0015479]
[1726073589339,0.174824,57201.0,57199.0,0.0015479]
[1726073589549,0.57469374,57203.0,57199.0,0.0015479]
[1726073589550,0.52644124,57200.0,57199.0,0.0015479]
[1726073589785,0.874125,57200.0,57199.0,0.0015479]
[1726073590247,0.874125,57200.0,57199.0,0.0075479]
[1726073590248,0.90154097,57200.0,57199.0,0.0075479]
[1726073590466,0.90154097,57200.0,57199.0,0.0165479]
[1726073590678,0.90154097,57200.0,57199.0,0.0105479]
[1726073590679,1.25119097,57200.0,57199.0,0.0105479]
[1726073590896,1.25119097,57200.0,57199.0,0.0015479]
[1726073591187,1.25119097,57200.0,57199.0,0.0035479]
[1726073591188,0.91054097,57200.0,57199.0,0.0035479]
[1726073591410,0.874125,57200.0,57199.0,0.0025479]
[1726073591626,0.88409283,57200.0,57199.0,0.0025479]
[1726073591862,0.88509283,57200.0,57199.0,0.0025479]
[1726073592081,1.37824283,57200.0,57199.0,0.0025479]
[1726073592294,1.39024283,57200.0,57199.0,0.0035479]
[1726073592545,1.39024283,57200.0,57182.0,0.0037431]
[1726073592546,0.874385,57183.0,57182.0,0.0037431]
[1726073592766,0.174877,57183.0,57182.0,0.0037431]
[1726073593219,0.03,57192.0,57182.0,0.0037431]
[1726073593220,0.22506174,57189.0,57182.0,0.0037431]
[1726073593436,0.174863,57188.0,57182.0,0.1786211]
[1726073593696,0.349712,57190.0,57182.0,0.0037431]
[1726073593924,0.1,57199.0,57182.0,0.0037431]
[1726073593925,0.22506174,57185.0,57182.0,0.0037431]
[1726073594145,0.174877,57183.0,57182.0,0.0037431]
[1726073594365,0.39993474,57185.0,57182.0,0.0037431]
[1726073594573,0.174877,57183.0,57182.0,0.0037431]
[1726073595005,0.174877,57183.0,57182.0,0.0107431]
[1726073595219,0.174877,57183.0,57182.0,0.0037431]
[1726073595651,0.20230045,57183.0,57182.0,0.0047431]
[1726073595881,0.02742345,57183.0,57182.0,0.0047431]
[1726073596345,0.20230045,57183.0,57182.0,0.0077431]
[1726073596561,0.55205445,57183.0,57182.0,0.0077431]
[1726073596777,0.55205445,57183.0,57182.0,0.0067431]
[1726073597016,0.20230045,57183.0,57182.0,0.0037431]
[1726073597226,0.20530045,57183.0,57182.0,0.0037431]
[1726073597471,0.02842345,57183.0,57182.0,0.5283831]
[1726073597719,0.03142345,57183.0,57182.0,0.6079831]
[1726073598166,0.03142345,57183.0,57182.0,0.9577431]
[1726073598400,0.03142345,57183.0,57182.0,0.6096211]
[1726073598628,0.02842345,57183.0,57182.0,0.6096211]
[1726073598857,0.02742345,57183.0,57182.0,0.6096211]
[1726073599071,0.02842345,57183.0,57182.0,0.0919811]
[1726073599523,0.20830045,57183.0,57182.0,0.0123811]
[1726073599737,0.55805445,57183.0,57182.0,0.0123811]
[1726073600009,0.90280845,57183.0,57182.0,0.0123811]
[1726073600233,0.55305445,57183.0,57182.0,0.0123811]
[1726073600675,0.90380845,57183.0,57182.0,0.0213811]
[1726073600887,0.90280845,57183.0,57182.0,0.0143811]
[1726073601111,0.90580845,57183.0,57182.0,0.0143811]
[1726073601359,0.875385,57183.0,57182.0,0.0143811]
[1726073601829,0.876385,57183.0,57182.0,0.0053811]